[Event "Late-Titled-Tuesday-Blitz-March-05-2024"]
[Site "Chess.com"]
[Date "2024.03.05"]
[Round "2"]
[White "Vesapesa"]
[Black "LastHeroJr"]
[Result "0-1"]
[WhiteElo "2226"]
[BlackElo "2494"]
[TimeControl "180+1"]
[EndTime "14:17:05 PST"]
[Termination "LastHeroJr won by resignation"]

1. e4 {[%clk 0:03:00.9]} 1... c6 {[%clk 0:02:59.4]} 2. d4 {[%clk 0:03:00.3]}
2... d5 {[%clk 0:03:00.3]} 3. exd5 {[%clk 0:03:00.7]} 3... cxd5 {[%clk
0:03:01.2]} 4. Bd3 {[%clk 0:02:59]} 4... Nc6 {[%clk 0:03:02.1]} 5. c3 {[%clk
0:02:58.7]} 5... Nf6 {[%clk 0:03:00.7]} 6. Bf4 {[%clk 0:02:58.3]} 6... Qb6
{[%clk 0:03:00]} 7. Qb3 {[%clk 0:02:55.9]} 7... Bg4 {[%clk 0:02:53.2]} 8. Nd2
{[%clk 0:02:54.5]} 8... e6 {[%clk 0:02:52.1]} 9. Ngf3 {[%clk 0:02:51.1]} 9...
Be7 {[%clk 0:02:51.5]} 10. h3 {[%clk 0:02:48]} 10... Bh5 {[%clk 0:02:50.8]} 11.
O-O {[%clk 0:02:36.7]} 11... O-O {[%clk 0:02:48.4]} 12. Ne5 {[%clk 0:02:31.4]}
12... Nxe5 {[%clk 0:02:46.3]} 13. dxe5 {[%clk 0:02:26.5]} 13... Nd7 {[%clk
0:02:44.8]} 14. Qc2 {[%clk 0:02:20.2]} 14... Bg6 {[%clk 0:02:43.9]} 15. Nb3
{[%clk 0:02:11.6]} 15... Rac8 {[%clk 0:02:40]} 16. Bxg6 {[%clk 0:02:02.7]} 16...
hxg6 {[%clk 0:02:38.9]} 17. Qe2 {[%clk 0:01:58.3]} 17... Nc5 {[%clk 0:02:37.8]}
18. Be3 {[%clk 0:01:56.6]} 18... Qc7 {[%clk 0:02:35.2]} 19. Nxc5 {[%clk
0:01:50.5]} 19... Bxc5 {[%clk 0:02:34.8]} 20. Bxc5 {[%clk 0:01:50]} 20... Qxc5
{[%clk 0:02:34.4]} 21. Rad1 {[%clk 0:01:45.9]} 21... Qa5 {[%clk 0:02:32.6]} 22.
a3 {[%clk 0:01:43.5]} 22... Rc4 {[%clk 0:02:31.7]} 23. Rd2 {[%clk 0:01:31.7]}
23... Re4 {[%clk 0:02:30.8]} 24. Qf3 {[%clk 0:01:15.9]} 24... Rxe5 {[%clk
0:02:30.5]} 25. Rd4 {[%clk 0:01:14.8]} 25... Rf5 {[%clk 0:02:29.6]} 26. Qg3
{[%clk 0:01:12.9]} 26... Rc8 {[%clk 0:02:26.7]} 27. Rfd1 {[%clk 0:01:09.7]}
27... Qc7 {[%clk 0:02:25.2]} 28. Qg4 {[%clk 0:01:03.1]} 28... b6 {[%clk
0:02:24.3]} 29. Qe2 {[%clk 0:00:56.7]} 29... Qe5 {[%clk 0:02:21.3]} 30. Qd2
{[%clk 0:00:50.8]} 30... Rc4 {[%clk 0:02:17.6]} 31. Rxc4 {[%clk 0:00:49.2]}
31... dxc4 {[%clk 0:02:17.4]} 32. Qd8+ {[%clk 0:00:48.3]} 32... Kh7 {[%clk
0:02:16.9]} 33. Qh4+ {[%clk 0:00:35.5]} 33... Rh5 {[%clk 0:02:15.4]} 34. Qxc4
{[%clk 0:00:35.3]} 34... Qb5 {[%clk 0:02:10.9]} 35. Qc8 {[%clk 0:00:27.3]} 35...
Qxb2 {[%clk 0:02:03.3]} 36. Rd8 {[%clk 0:00:26.3]} 36... Qc1+ {[%clk 0:02:02.8]}
37. Kh2 {[%clk 0:00:25]} 37... Qf4+ {[%clk 0:02:00.4]} 38. Kg1 {[%clk
0:00:23.4]} 38... g5 {[%clk 0:01:55.6]} 39. Rh8+ {[%clk 0:00:22]} 39... Kg6
{[%clk 0:01:55.3]} 40. Rxh5 {[%clk 0:00:17.7]} 40... Kxh5 {[%clk 0:01:54.3]} 41.
Qc6 {[%clk 0:00:16.6]} 41... Qc1+ {[%clk 0:01:50.6]} 42. Kh2 {[%clk 0:00:16.3]}
42... Qxa3 {[%clk 0:01:50.5]} 43. g4+ {[%clk 0:00:15.9]} 43... Kh6 {[%clk
0:01:49.4]} 44. Qc8 {[%clk 0:00:15.2]} 44... Qd6+ {[%clk 0:01:45.4]} 45. Kg1
{[%clk 0:00:14]} 45... Kh7 {[%clk 0:01:44.1]} 46. Qe8 {[%clk 0:00:12.5]} 46...
Kg6 {[%clk 0:01:43.3]} 47. Qh8 {[%clk 0:00:11.7]} 47... Kf6 {[%clk 0:01:42.2]}
48. Qh7 {[%clk 0:00:09.1]} 48... a5 {[%clk 0:01:41]} 49. Qe4 {[%clk 0:00:08.5]}
49... Qd1+ {[%clk 0:01:39.3]} 50. Kh2 {[%clk 0:00:08.2]} 50... Qd5 {[%clk
0:01:39]} 51. Qe3 {[%clk 0:00:05.5]} 51... Qe5+ {[%clk 0:01:39.1]} 0-1

[Event "Late-Titled-Tuesday-Blitz-March-05-2024"]
[Site "Chess.com"]
[Date "2024.03.05"]
[Round "2"]
[White "HajiyevKanan"]
[Black "HamedWafa4"]
[Result "0-1"]
[WhiteElo "2538"]
[BlackElo "2747"]
[TimeControl "180+1"]
[EndTime "14:17:06 PST"]
[Termination "HamedWafa4 won by resignation"]

1. d4 {[%clk 0:03:00.9]} 1... Nf6 {[%clk 0:02:59.7]} 2. Nf3 {[%clk 0:03:00.9]}
2... b6 {[%clk 0:02:53.6]} 3. g3 {[%clk 0:02:59.6]} 3... Bb7 {[%clk 0:02:50.8]}
4. Bg2 {[%clk 0:03:00.5]} 4... g6 {[%clk 0:02:51.4]} 5. O-O {[%clk 0:03:00.8]}
5... Bg7 {[%clk 0:02:51.7]} 6. b3 {[%clk 0:03:00.4]} 6... O-O {[%clk 0:02:51.5]}
7. Bb2 {[%clk 0:03:01.1]} 7... d6 {[%clk 0:02:47.9]} 8. c4 {[%clk 0:03:01.3]}
8... Nbd7 {[%clk 0:02:47.2]} 9. d5 {[%clk 0:03:00.9]} 9... c6 {[%clk 0:02:46.7]}
10. dxc6 {[%clk 0:02:59.6]} 10... Bxc6 {[%clk 0:02:46.8]} 11. Nc3 {[%clk
0:03:00.5]} 11... Rc8 {[%clk 0:02:45.8]} 12. Qd2 {[%clk 0:02:57.6]} 12... Qc7
{[%clk 0:02:45]} 13. Rac1 {[%clk 0:02:57.5]} 13... Qb7 {[%clk 0:02:45]} 14. Rfd1
{[%clk 0:02:57.7]} 14... a6 {[%clk 0:02:41.3]} 15. Ne1 {[%clk 0:02:58]} 15...
Bxg2 {[%clk 0:02:39.9]} 16. Nxg2 {[%clk 0:02:58.9]} 16... b5 {[%clk 0:02:37.7]}
17. Nd5 {[%clk 0:02:51.2]} 17... Nxd5 {[%clk 0:02:17.9]} 18. Bxg7 {[%clk
0:02:49.4]} 18... Kxg7 {[%clk 0:02:15.5]} 19. cxd5 {[%clk 0:02:49.7]} 19... Qb6
{[%clk 0:02:05.1]} 20. h4 {[%clk 0:02:43.2]} 20... Nf6 {[%clk 0:02:01.5]} 21.
Nf4 {[%clk 0:02:40.5]} 21... b4 {[%clk 0:01:48.5]} 22. Qd3 {[%clk 0:02:09.5]}
22... Ng4 {[%clk 0:01:41]} 23. e3 {[%clk 0:02:02.9]} 23... Ne5 {[%clk
0:01:38.4]} 24. Qe4 {[%clk 0:01:54.1]} 24... Rc3 {[%clk 0:01:36.6]} 25. Ne2
{[%clk 0:01:45]} 25... Rc7 {[%clk 0:01:34]} 26. Rxc7 {[%clk 0:01:44.2]} 26...
Qxc7 {[%clk 0:01:33.3]} 27. Rc1 {[%clk 0:01:45.1]} 27... Qd7 {[%clk 0:01:30.4]}
28. Kg2 {[%clk 0:01:41.5]} 28... a5 {[%clk 0:01:27.7]} 29. Qd4 {[%clk
0:01:38.1]} 29... Kg8 {[%clk 0:01:22.6]} 30. Ng1 {[%clk 0:01:15.8]} 30... Qf5
{[%clk 0:01:15.8]} 31. f4 {[%clk 0:01:01.1]} 31... Ng4 {[%clk 0:01:13.2]} 32. e4
{[%clk 0:00:59.2]} 32... Qd7 {[%clk 0:01:09.2]} 33. Kf3 {[%clk 0:00:43.7]} 33...
Nh2+ {[%clk 0:01:02.8]} 34. Kg2 {[%clk 0:00:43.5]} 34... Ng4 {[%clk 0:01:03.4]}
35. Kf3 {[%clk 0:00:43.7]} 35... e5 {[%clk 0:01:02.5]} 36. dxe6 {[%clk
0:00:40.2]} 36... Qxe6 {[%clk 0:01:01.5]} 37. Rd1 {[%clk 0:00:37.8]} 37... Nf6
{[%clk 0:01:00.6]} 38. e5 {[%clk 0:00:29]} 38... dxe5 {[%clk 0:00:59.3]} 39.
Qxe5 {[%clk 0:00:29.8]} 39... Qg4+ {[%clk 0:00:58.7]} 40. Kg2 {[%clk 0:00:29]}
40... Qxd1 {[%clk 0:00:58]} 41. Qxf6 {[%clk 0:00:29.4]} 41... Qc2+ {[%clk
0:00:56.4]} 42. Kh3 {[%clk 0:00:29]} 42... Qxa2 {[%clk 0:00:55.6]} 43. Nf3
{[%clk 0:00:28]} 43... Qxb3 {[%clk 0:00:56]} 44. h5 {[%clk 0:00:27.6]} 44...
Qe6+ {[%clk 0:00:56.1]} 0-1

[Event "Late-Titled-Tuesday-Blitz-March-05-2024"]
[Site "Chess.com"]
[Date "2024.03.05"]
[Round "2"]
[White "wadsy27"]
[Black "stepanosinovsky"]
[Result "1-0"]
[WhiteElo "2629"]
[BlackElo "2384"]
[TimeControl "180+1"]
[EndTime "14:17:06 PST"]
[Termination "wadsy27 won on time"]

1. Nf3 {[%clk 0:03:00.9]} 1... Nf6 {[%clk 0:02:58]} 2. g3 {[%clk 0:03:01.6]}
2... g6 {[%clk 0:02:58.9]} 3. Bg2 {[%clk 0:02:59.8]} 3... Bg7 {[%clk 0:02:59.8]}
4. O-O {[%clk 0:02:59.8]} 4... O-O {[%clk 0:03:00.7]} 5. c4 {[%clk 0:02:59.9]}
5... d6 {[%clk 0:03:01.6]} 6. Nc3 {[%clk 0:02:58.2]} 6... e5 {[%clk 0:03:01.1]}
7. d3 {[%clk 0:02:58.6]} 7... Nc6 {[%clk 0:02:58.7]} 8. Rb1 {[%clk 0:02:58.7]}
8... a5 {[%clk 0:02:58.2]} 9. a3 {[%clk 0:02:58.2]} 9... Nd4 {[%clk 0:02:50.2]}
10. b4 {[%clk 0:02:53.2]} 10... axb4 {[%clk 0:02:46]} 11. axb4 {[%clk
0:02:54.1]} 11... Bg4 {[%clk 0:02:22.3]} 12. e3 {[%clk 0:02:40.8]} 12... Nxf3+
{[%clk 0:02:10.3]} 13. Bxf3 {[%clk 0:02:41.7]} 13... Bxf3 {[%clk 0:02:10.2]} 14.
Qxf3 {[%clk 0:02:42.6]} 14... c6 {[%clk 0:02:09]} 15. e4 {[%clk 0:02:31.8]}
15... Qd7 {[%clk 0:02:00.1]} 16. Bg5 {[%clk 0:02:26.6]} 16... Ne8 {[%clk
0:01:43.1]} 17. Ra1 {[%clk 0:02:25.6]} 17... Nc7 {[%clk 0:01:39.7]} 18. Be3
{[%clk 0:02:05]} 18... f5 {[%clk 0:01:24]} 19. Rxa8 {[%clk 0:02:04.2]} 19...
Rxa8 {[%clk 0:01:22.4]} 20. exf5 {[%clk 0:02:03.9]} 20... Qxf5 {[%clk
0:01:14.2]} 21. Qe2 {[%clk 0:01:53.8]} 21... Ra3 {[%clk 0:01:08.7]} 22. Rc1
{[%clk 0:01:51.2]} 22... Ne6 {[%clk 0:00:34.1]} 23. Ne4 {[%clk 0:01:42.3]} 23...
Nf4 {[%clk 0:00:22.5]} 24. gxf4 {[%clk 0:01:30.5]} 24... exf4 {[%clk 0:00:23.4]}
25. Bd2 {[%clk 0:01:28.2]} 25... f3 {[%clk 0:00:20.3]} 26. Qe3 {[%clk
0:01:28.1]} 26... Qh3 {[%clk 0:00:15.9]} 27. Qg5 {[%clk 0:01:26]} 27... Rxd3
{[%clk 0:00:11.3]} 28. Bf4 {[%clk 0:00:39.2]} 1-0

[Event "Late-Titled-Tuesday-Blitz-March-05-2024"]
[Site "Chess.com"]
[Date "2024.03.05"]
[Round "2"]
[White "Bekkedahl"]
[Black "masterofpuppets2"]
[Result "0-1"]
[WhiteElo "2199"]
[BlackElo "2481"]
[TimeControl "180+1"]
[EndTime "14:17:11 PST"]
[Termination "masterofpuppets2 won by resignation"]

1. e4 {[%clk 0:02:54.1]} 1... e5 {[%clk 0:02:59.9]} 2. Nf3 {[%clk 0:02:51.4]}
2... Nc6 {[%clk 0:03:00.3]} 3. Bb5 {[%clk 0:02:48]} 3... a6 {[%clk 0:03:00.2]}
4. Ba4 {[%clk 0:02:43.5]} 4... Nf6 {[%clk 0:03:00.1]} 5. O-O {[%clk 0:02:41.2]}
5... d6 {[%clk 0:03:00.5]} 6. c3 {[%clk 0:02:39.8]} 6... Bd7 {[%clk 0:02:59.1]}
7. Re1 {[%clk 0:02:37.8]} 7... g6 {[%clk 0:02:58.5]} 8. d4 {[%clk 0:02:37.4]}
8... Bg7 {[%clk 0:02:59.2]} 9. Nbd2 {[%clk 0:02:34.6]} 9... O-O {[%clk 0:02:59]}
10. Nf1 {[%clk 0:02:34.1]} 10... exd4 {[%clk 0:02:57.1]} 11. cxd4 {[%clk
0:02:33.5]} 11... b5 {[%clk 0:02:57.8]} 12. Bb3 {[%clk 0:02:33.1]} 12... Bg4
{[%clk 0:02:58]} 13. d5 {[%clk 0:02:13.3]} 13... Bxf3 {[%clk 0:02:56.9]} 14.
Qxf3 {[%clk 0:02:10.6]} 14... Nd4 {[%clk 0:02:56.3]} 15. Qd3 {[%clk 0:02:07.6]}
15... Nxb3 {[%clk 0:02:50.3]} 16. Qxb3 {[%clk 0:02:08.1]} 16... Re8 {[%clk
0:02:51.2]} 17. Bg5 {[%clk 0:02:02.5]} 17... h6 {[%clk 0:02:50.4]} 18. Bxf6
{[%clk 0:02:02.3]} 18... Qxf6 {[%clk 0:02:51.3]} 19. Rac1 {[%clk 0:01:51.9]}
19... Re7 {[%clk 0:02:50.7]} 20. Rc2 {[%clk 0:01:48.7]} 20... Rae8 {[%clk
0:02:50]} 21. Ng3 {[%clk 0:01:46.8]} 21... h5 {[%clk 0:02:49]} 22. f3 {[%clk
0:01:34.3]} 22... h4 {[%clk 0:02:38.7]} 23. Ne2 {[%clk 0:01:33.8]} 23... Qg5
{[%clk 0:02:18.9]} 24. h3 {[%clk 0:01:18.9]} 24... f5 {[%clk 0:02:05.2]} 25. Nc3
{[%clk 0:00:47.2]} 25... Bd4+ {[%clk 0:01:49.5]} 26. Kh1 {[%clk 0:00:44.6]}
26... Qg3 {[%clk 0:01:46.1]} 27. Rf1 {[%clk 0:00:09.5]} 27... Be5 {[%clk
0:01:45.9]} 28. f4 {[%clk 0:00:09.8]} 28... Bxf4 {[%clk 0:01:45.3]} 29. Rxf4
{[%clk 0:00:08.6]} 29... Qxf4 {[%clk 0:01:46.2]} 30. Re2 {[%clk 0:00:06.2]}
30... fxe4 {[%clk 0:01:32.5]} 31. Qc2 {[%clk 0:00:06]} 31... b4 {[%clk
0:01:12.9]} 32. Nd1 {[%clk 0:00:06]} 32... Qf1+ {[%clk 0:01:11.4]} 33. Kh2
{[%clk 0:00:06.5]} 33... Kh7 {[%clk 0:01:10.4]} 34. Ne3 {[%clk 0:00:06.7]} 34...
Qf4+ {[%clk 0:01:10.2]} 35. Kh1 {[%clk 0:00:06.5]} 35... Rf7 {[%clk 0:01:08.6]}
36. Qd1 {[%clk 0:00:03]} 36... Ref8 {[%clk 0:01:02.6]} 37. Re1 {[%clk 0:00:03]}
37... Qg3 {[%clk 0:00:56.2]} 38. Rg1 {[%clk 0:00:01.6]} 38... Qxe3 {[%clk
0:00:55.9]} 0-1

[Event "Late-Titled-Tuesday-Blitz-March-05-2024"]
[Site "Chess.com"]
[Date "2024.03.05"]
[Round "2"]
[White "grzechu96"]
[Black "ahmedkandiliii"]
[Result "1-0"]
[WhiteElo "2742"]
[BlackElo "2538"]
[TimeControl "180+1"]
[EndTime "14:17:15 PST"]
[Termination "grzechu96 won on time"]

1. e4 {[%clk 0:03:00.9]} 1... d6 {[%clk 0:02:58.3]} 2. d4 {[%clk 0:03:00.8]}
2... Nf6 {[%clk 0:02:56.4]} 3. Nc3 {[%clk 0:03:00.9]} 3... g6 {[%clk 0:02:52.9]}
4. Nf3 {[%clk 0:02:59.7]} 4... a6 {[%clk 0:02:48.8]} 5. Be3 {[%clk 0:02:55.6]}
5... b5 {[%clk 0:02:47.5]} 6. e5 {[%clk 0:02:55.2]} 6... Ng4 {[%clk 0:02:43.6]}
7. Bf4 {[%clk 0:02:52.9]} 7... Bg7 {[%clk 0:02:35.6]} 8. h3 {[%clk 0:02:47.2]}
8... Nh6 {[%clk 0:02:33.3]} 9. Qd2 {[%clk 0:02:45.1]} 9... Ng8 {[%clk
0:02:18.3]} 10. O-O-O {[%clk 0:02:43.6]} 10... Bb7 {[%clk 0:02:13.2]} 11. Bd3
{[%clk 0:02:39.5]} 11... Nd7 {[%clk 0:02:06.8]} 12. Be4 {[%clk 0:02:33.8]} 12...
Qc8 {[%clk 0:01:46.8]} 13. Rhe1 {[%clk 0:02:07.9]} 13... b4 {[%clk 0:01:35.4]}
14. Nd5 {[%clk 0:02:08.2]} 14... Bxd5 {[%clk 0:01:25.7]} 15. Bxd5 {[%clk
0:02:09.1]} 15... c6 {[%clk 0:01:25.1]} 16. Bb3 {[%clk 0:01:59.5]} 16... d5
{[%clk 0:01:23.7]} 17. e6 {[%clk 0:01:04.7]} 17... fxe6 {[%clk 0:01:20.9]} 18.
Rxe6 {[%clk 0:01:05]} 18... Nc5 {[%clk 0:01:16.8]} 19. Re2 {[%clk 0:01:04.9]}
19... Ne4 {[%clk 0:01:11.5]} 20. Qxb4 {[%clk 0:01:04.5]} 20... a5 {[%clk
0:01:10.1]} 21. Qa4 {[%clk 0:01:04.8]} 21... Ngf6 {[%clk 0:01:05.9]} 22. Ne5
{[%clk 0:01:04]} 22... O-O {[%clk 0:00:33.6]} 23. Nxc6 {[%clk 0:01:04]} 23...
Rf7 {[%clk 0:00:13.9]} 24. f3 {[%clk 0:01:03.2]} 24... Nh5 {[%clk 0:00:07.2]}
25. Bxd5 {[%clk 0:00:57.1]} 25... Nxf4 {[%clk 0:00:03.5]} 26. Bxf7+ {[%clk
0:00:57.3]} 26... Kxf7 {[%clk 0:00:03.7]} 27. Rxe4 {[%clk 0:00:58]} 27... Bh6
{[%clk 0:00:01.7]} 28. Rxe7+ {[%clk 0:00:36.7]} 1-0

[Event "Late-Titled-Tuesday-Blitz-March-05-2024"]
[Site "Chess.com"]
[Date "2024.03.05"]
[Round "2"]
[White "mac0504"]
[Black "GM4life"]
[Result "0-1"]
[WhiteElo "2710"]
[BlackElo "2549"]
[TimeControl "180+1"]
[EndTime "14:17:19 PST"]
[Termination "GM4life won on time"]

1. c4 {[%clk 0:03:00]} 1... Nf6 {[%clk 0:02:51.4]} 2. Nc3 {[%clk 0:02:58.7]}
2... e6 {[%clk 0:02:51.2]} 3. e4 {[%clk 0:02:59.1]} 3... d5 {[%clk 0:02:51.2]}
4. e5 {[%clk 0:02:59.8]} 4... d4 {[%clk 0:02:51.5]} 5. exf6 {[%clk 0:03:00.2]}
5... dxc3 {[%clk 0:02:51.2]} 6. bxc3 {[%clk 0:03:01.1]} 6... Qxf6 {[%clk
0:02:49.6]} 7. d4 {[%clk 0:03:01.6]} 7... h6 {[%clk 0:02:45.4]} 8. Nf3 {[%clk
0:03:01.4]} 8... Bd6 {[%clk 0:02:45.9]} 9. Bd3 {[%clk 0:02:57.2]} 9... Nd7
{[%clk 0:02:46.2]} 10. O-O {[%clk 0:02:57.7]} 10... O-O {[%clk 0:02:44]} 11. Re1
{[%clk 0:02:55.2]} 11... c5 {[%clk 0:02:42.5]} 12. Bc2 {[%clk 0:02:37.8]} 12...
Rd8 {[%clk 0:02:34.1]} 13. Qd3 {[%clk 0:02:20]} 13... Nf8 {[%clk 0:02:34.4]} 14.
Bb2 {[%clk 0:02:15.7]} 14... b6 {[%clk 0:02:33.5]} 15. Rad1 {[%clk 0:02:06.8]}
15... Bb7 {[%clk 0:02:33.9]} 16. Ne5 {[%clk 0:01:50.3]} 16... Bxe5 {[%clk
0:02:24.3]} 17. Rxe5 {[%clk 0:01:48.6]} 17... Qxe5 {[%clk 0:02:18]} 18. dxe5
{[%clk 0:01:48.8]} 18... Rxd3 {[%clk 0:02:18.5]} 19. Rxd3 {[%clk 0:01:48.9]}
19... Ng6 {[%clk 0:02:16.3]} 20. Rd7 {[%clk 0:01:42.2]} 20... Ba6 {[%clk
0:02:11.8]} 21. Bxg6 {[%clk 0:01:32.6]} 21... fxg6 {[%clk 0:02:10.8]} 22. f4
{[%clk 0:01:08.5]} 22... Bxc4 {[%clk 0:02:11]} 23. a3 {[%clk 0:01:09.1]} 23...
Bd5 {[%clk 0:01:59.9]} 24. Bc1 {[%clk 0:00:58.5]} 24... a5 {[%clk 0:01:57.6]}
25. Be3 {[%clk 0:00:54.4]} 25... Rc8 {[%clk 0:01:51.2]} 26. Ra7 {[%clk
0:00:41.8]} 26... Be4 {[%clk 0:01:42.6]} 27. Kf2 {[%clk 0:00:40.7]} 27... Rd8
{[%clk 0:01:40.8]} 28. Ra6 {[%clk 0:00:35.6]} 28... Rd3 {[%clk 0:01:38.9]} 29.
Rxb6 {[%clk 0:00:35.4]} 29... Rxc3 {[%clk 0:01:38.3]} 30. Rxe6 {[%clk
0:00:22.6]} 30... Rc2+ {[%clk 0:01:37.5]} 31. Ke1 {[%clk 0:00:22.3]} 31... Bxg2
{[%clk 0:01:33.1]} 32. Re7 {[%clk 0:00:16.4]} 32... Bf3 {[%clk 0:01:30]} 33. Bd2
{[%clk 0:00:12.1]} 33... c4 {[%clk 0:01:29.7]} 34. Rc7 {[%clk 0:00:09.4]} 34...
Bd5 {[%clk 0:01:16.7]} 35. Bxa5 {[%clk 0:00:08.7]} 35... Rxh2 {[%clk 0:01:12.4]}
36. Bc3 {[%clk 0:00:05.4]} 36... h5 {[%clk 0:01:09.1]} 37. e6 {[%clk 0:00:03.4]}
37... Bxe6 {[%clk 0:01:07.8]} 38. Rxg7+ {[%clk 0:00:04.2]} 38... Kf8 {[%clk
0:01:07.7]} 39. Rxg6 {[%clk 0:00:04.8]} 39... Bg4 {[%clk 0:01:06.7]} 40. f5
{[%clk 0:00:04]} 40... Rc2 {[%clk 0:01:00.2]} 41. Bb4+ {[%clk 0:00:03.5]} 41...
Kf7 {[%clk 0:01:00.3]} 42. Rh6 {[%clk 0:00:01.3]} 42... c3 {[%clk 0:00:58]} 0-1

[Event "Late-Titled-Tuesday-Blitz-March-05-2024"]
[Site "Chess.com"]
[Date "2024.03.05"]
[Round "2"]
[White "MightyGMpretender"]
[Black "crazyluzhinTh3"]
[Result "0-1"]
[WhiteElo "2747"]
[BlackElo "2557"]
[TimeControl "180+1"]
[EndTime "14:17:23 PST"]
[Termination "crazyluzhinTh3 won by checkmate"]

1. e4 {[%clk 0:03:00.9]} 1... d6 {[%clk 0:02:52.4]} 2. d4 {[%clk 0:03:00.6]}
2... Nf6 {[%clk 0:02:53.1]} 3. Nc3 {[%clk 0:02:58.7]} 3... g6 {[%clk 0:02:53.6]}
4. Nf3 {[%clk 0:02:54.2]} 4... Bg7 {[%clk 0:02:53.8]} 5. Be2 {[%clk 0:02:53.6]}
5... O-O {[%clk 0:02:54.1]} 6. O-O {[%clk 0:02:54]} 6... Nc6 {[%clk 0:02:54.7]}
7. d5 {[%clk 0:02:47.9]} 7... Nb8 {[%clk 0:02:54.4]} 8. h3 {[%clk 0:02:42.6]}
8... c6 {[%clk 0:02:54.6]} 9. Re1 {[%clk 0:02:41]} 9... b6 {[%clk 0:02:54.9]}
10. a4 {[%clk 0:02:39.9]} 10... Bb7 {[%clk 0:02:51.4]} 11. Bc4 {[%clk 0:02:40]}
11... a6 {[%clk 0:02:48.8]} 12. Bf1 {[%clk 0:02:28.3]} 12... Nbd7 {[%clk
0:02:47.4]} 13. Bf4 {[%clk 0:02:24.1]} 13... cxd5 {[%clk 0:02:42.8]} 14. exd5
{[%clk 0:02:23.1]} 14... Re8 {[%clk 0:02:43.3]} 15. Qd2 {[%clk 0:02:17.3]} 15...
Qc7 {[%clk 0:02:43.1]} 16. Rad1 {[%clk 0:02:12.7]} 16... Rac8 {[%clk 0:02:26.6]}
17. Bh6 {[%clk 0:02:11.8]} 17... Bh8 {[%clk 0:02:25.4]} 18. Ng5 {[%clk
0:02:04.6]} 18... Ne5 {[%clk 0:02:22.4]} 19. Qf4 {[%clk 0:01:57.9]} 19... Nc4
{[%clk 0:02:18.8]} 20. Bxc4 {[%clk 0:01:52.6]} 20... Qxc4 {[%clk 0:02:15.7]} 21.
Rd4 {[%clk 0:01:45.6]} 21... Qc5 {[%clk 0:02:15.7]} 22. Qh4 {[%clk 0:01:40.1]}
22... Bg7 {[%clk 0:02:11.2]} 23. Rf4 {[%clk 0:01:36.2]} 23... Bh8 {[%clk
0:01:55.7]} 24. Re3 {[%clk 0:01:01.3]} 24... Bxd5 {[%clk 0:01:40.4]} 25. Nxd5
{[%clk 0:00:42.7]} 25... Qxd5 {[%clk 0:01:38.5]} 26. c4 {[%clk 0:00:41.2]} 26...
Qd1+ {[%clk 0:01:36.1]} 27. Kh2 {[%clk 0:00:41.6]} 27... Qh5 {[%clk 0:01:28.1]}
28. Qxh5 {[%clk 0:00:37.9]} 28... Nxh5 {[%clk 0:01:23.4]} 29. Rxf7 {[%clk
0:00:20.8]} 29... Bf6 {[%clk 0:01:22.4]} 30. Rf3 {[%clk 0:00:21.5]} 30... Rxc4
{[%clk 0:01:16.7]} 31. g4 {[%clk 0:00:21.6]} 31... Be5+ {[%clk 0:01:10.2]} 32.
Kh1 {[%clk 0:00:15.6]} 32... Nf4 {[%clk 0:00:59.3]} 33. R3xf4 {[%clk 0:00:07.1]}
33... Rxf4 {[%clk 0:00:57.4]} 34. Rxh7 {[%clk 0:00:07.5]} 34... Rxf2 {[%clk
0:00:44.7]} 35. h4 {[%clk 0:00:05.7]} 35... Rc8 {[%clk 0:00:39.9]} 36. Rxe7
{[%clk 0:00:02.7]} 36... Rc1# {[%clk 0:00:38.4]} 0-1

[Event "Late-Titled-Tuesday-Blitz-March-05-2024"]
[Site "Chess.com"]
[Date "2024.03.05"]
[Round "2"]
[White "secretsuperstar7"]
[Black "Too_Stupid_To_Play"]
[Result "1-0"]
[WhiteElo "2502"]
[BlackElo "2263"]
[TimeControl "180+1"]
[EndTime "14:17:24 PST"]
[Termination "secretsuperstar7 won on time"]

1. c4 {[%clk 0:02:35.6]} 1... Nf6 {[%clk 0:02:56.3]} 2. Nc3 {[%clk 0:02:34.8]}
2... e5 {[%clk 0:02:55.2]} 3. Nf3 {[%clk 0:02:32.8]} 3... Nc6 {[%clk 0:02:54.7]}
4. g3 {[%clk 0:02:33.2]} 4... d5 {[%clk 0:02:53.4]} 5. cxd5 {[%clk 0:02:33]}
5... Nxd5 {[%clk 0:02:54.3]} 6. Bg2 {[%clk 0:02:33.2]} 6... Nb6 {[%clk 0:02:55]}
7. O-O {[%clk 0:02:33.2]} 7... Be7 {[%clk 0:02:55.5]} 8. d3 {[%clk 0:02:33.6]}
8... O-O {[%clk 0:02:55.7]} 9. a3 {[%clk 0:02:34]} 9... a5 {[%clk 0:02:55.4]}
10. b3 {[%clk 0:02:33.4]} 10... Be6 {[%clk 0:02:54.7]} 11. Bb2 {[%clk
0:02:33.4]} 11... f6 {[%clk 0:02:52.4]} 12. Rc1 {[%clk 0:02:33]} 12... Qd7
{[%clk 0:02:41.2]} 13. Re1 {[%clk 0:02:31.6]} 13... Rfd8 {[%clk 0:02:38.2]} 14.
Ne4 {[%clk 0:02:28.4]} 14... Qc8 {[%clk 0:02:24.6]} 15. Nfd2 {[%clk 0:02:23.3]}
15... a4 {[%clk 0:02:16.9]} 16. b4 {[%clk 0:02:19.2]} 16... Nd4 {[%clk
0:02:09.8]} 17. Bxd4 {[%clk 0:02:03.4]} 17... Rxd4 {[%clk 0:02:10.7]} 18. Nc5
{[%clk 0:02:01.7]} 18... Bxc5 {[%clk 0:02:11.2]} 19. bxc5 {[%clk 0:01:51.4]}
19... Nd5 {[%clk 0:01:27.1]} 20. e3 {[%clk 0:01:19.1]} 20... Rxd3 {[%clk
0:01:03.8]} 21. Be4 {[%clk 0:01:18.9]} 21... Nc3 {[%clk 0:00:33.8]} 22. Qc2
{[%clk 0:00:37.4]} 22... Rxd2 {[%clk 0:00:33]} 23. Bxh7+ {[%clk 0:00:31]} 23...
Kh8 {[%clk 0:00:24.6]} 24. Qxd2 {[%clk 0:00:31.2]} 24... Kxh7 {[%clk 0:00:08.9]}
25. Qxc3 {[%clk 0:00:30.2]} 25... Bh3 {[%clk 0:00:09.3]} 26. Qd3+ {[%clk
0:00:27.2]} 26... g6 {[%clk 0:00:05.4]} 27. Rc4 {[%clk 0:00:26.5]} 27... Kg7
{[%clk 0:00:01.2]} 28. Rd1 {[%clk 0:00:21.1]} 1-0